{"text_format":"1","workbook":"xlsx","n_sheets":4,"sheets":["Sheet1","Sheet2","Sheet3","Compatibility Report"],"not_rendered":{"charts":0,"images":0,"macros":0,"external_links":0,"defined_names":1,"comments":0,"pivot_tables":0},"unopened":[],"bounds":{"document_bytes":16777216,"sheet_cells":100000,"rows_first":2000,"rows_last":500,"rows_between":2000,"halvings":0,"cell_chars":16384,"cell_head_chars":4096},"cells_cut":0,"cells_raw":0,"read":"whole","date_system":"1900"}

{"sheet":"Sheet1","index":0,"n_rows":44,"n_cols":12,"rows_kept":44,"cut":false,"hidden":false,"merged":[]}
[" ",null,null,null,null,null," "]
[]
["International Students funds held  as at 31 December "]
[]
[]
["SCHOOL_____________________________",null,null,null,null,null,null,null,null,null,null," "]
[]
[]
["Please allocate each amount deposited that is for 2021 to either FEES, HOMESTAY or OTHER"]
[]
[]
[]
["Name of Student","Amount Banked prior to 31/12","Date Banked","Amt that relates to 2021","2021 Fees","2021 Homestay","Other Amts","Difference between column D and columns F,G,H"]
[null,null,null,null,null,null,null,"(should = Zero)"]
[]
["EXAMPLE"," ",null,null," "," "," "]
["Petrova Mirinov",10000,"2020-12-21",10000,6000,3500,500,{"$f":"D17-SUM(E17:G17)","v":0}," "]
["Andrew De Gruene",8000,"2020-05-21",5000,3000,1500,500,{"$f":"D18-SUM(E18:G18)","v":0}]
[null,null,null,null,null,null,null," "]
[null,0," ",0,0,0,0,{"$f":"D20-SUM(E20:G20)","v":0}," "]
[" ",0," ",0,0,0,0,0]
[null,0," ",0,0,0,0,0]
[" ",0," ",0,0,0,0,0]
[null,0," ",0,0,0,0,0]
[null,0," ",0,0,0,0,0]
[null,0," ",0,0,0,0,0]
[null,0," ",0,0,0,0,0]
[null,0," ",0,0,0,0,0]
[null,0," ",0,0,0,0,0]
[null,0," ",0,0,0,0,0]
[null,0," ",0,0,0,0,0]
[null,0," ",0,0,0,0,0]
[null,0," ",0,0,0,0,0]
[null,0," ",0,0,0,0,0]
[null,0," ",0,0,0,0,0," "]
[null,0," ",0,0,0,0,0]
[null,0," ",0,0,0,0,0]
[null,0," ",0,0,0,0,0]
[null,0," ",0,0,0,0,0]
["Total",{"$f":"SUM(B20:B39)","v":0},null,{"$f":"SUM(D20:D39)","v":0},{"$f":"SUM(E20:E39)","v":0},{"$f":"SUM(F20:F39)","v":0},{"$f":"SUM(G20:G39)","v":0}]
[]
[" "," ",null,null,null," "]
[null," ",null,null,null," "]
[" "," ",null,null,null," "]

{"sheet":"Sheet2","index":1,"n_rows":0,"n_cols":0,"rows_kept":0,"cut":false,"hidden":false,"merged":[]}

{"sheet":"Sheet3","index":2,"n_rows":0,"n_cols":0,"rows_kept":0,"cut":false,"hidden":false,"merged":[]}

{"sheet":"Compatibility Report","index":3,"n_rows":8,"n_cols":6,"rows_kept":8,"cut":false,"hidden":false,"merged":[]}
[null,"Compatibility Report for App. 4 International Students.xls"]
[null,"Run on 7/12/2015 21:48"]
[]
[null,"The following features in this workbook are not supported by earlier versions of Excel. These features may be lost or degraded when opening this workbook in an earlier version of Excel or if you save this workbook in an earlier file format."]
[]
[null,"Minor loss of fidelity",null,null,"# of occurrences","Version"]
[]
[null,"Some cells or styles in this workbook contain formatting that is not supported by the selected file format. These formats will be converted to the closest format available.",null,null,6,"Excel 97-2003"]